[Event "10th Cherry Blossom Classic 2023"]
[Site "Dulles"]
[Date "2023.05.25"]
[Round "1.12"]
[White "Senft, Sean"]
[Black "Stearman, Josiah"]
[Result "0-1"]
[ECO "E13"]
[WhiteElo "2089"]
[BlackElo "2385"]
[Annotator "TA"]
[PlyCount "120"]
[EventDate "2023.05.24"]
[EventType "swiss"]
[EventCountry "USA"]
[SourceTitle "playchess.com"]
[Source "ChessBase"]
[SourceQuality "1"]
[TimeControl "5400+30"]

{[%evp 22,120,-15,-18,-14,-25,-27,-32,-27,-19,-24,-27,-20,-63,-42,-48,-45,-53,-33,-52,-36,-61,-56,-36,-51,-64,-59,-63,-60,-53,0,-13,-20,-74,-66,-68,-88,-120,-98,-83,-75,-74,-66,-67,-31,-120,-124,-114,-56,-58,-68,-59,0,0,11,0,0,-144,-122,-119,-77,-202,-229,-272,-136,-141,-81,-229,166,166,173,191,216,0,0,-8,-8,-360,-350,-343,-312,-320,-322,-306,-227,-311,-271,-285,-254,-254,-240,-431,-387,-29972,-29974,-29979,-29980,-29980,-29981,-29984,-29984]} 1. d4 {[%emt 0:03:30]} Nf6 {[%emt 0:00:05]} 2. c4 {[%emt 0:00:06]} e6 {[%emt 0:00:03]} 3. Nc3 {[%emt 0:00:18]} Bb4 {[%emt 0:00:05]} 4. Nf3 {[%emt 0:00:21]} b6 {[%emt 0:00:05]} 5. Bg5 {[%emt 0:00:38][%cal Bc1g5,Bg5h4,Bh4g3][%mdl 32]} h6 {[%emt 0:00:05]} 6. Bh4 {[%emt 0:00:17]} g5 {[%emt 0:00:05]} 7. Bg3 {[%emt 0:00:05]} Ne4 {[%emt 0:00:03]} 8. Qc2 {[%emt 0:01:19]} f5 {[%emt 0:00:50]} 9. e3 {[%emt 0:01:17]} Bb7 {[%emt 0:00:08]} 10. Bd3 {[%emt 0:01:10]} Bxc3+ {[%emt 0:00:17]} 11. bxc3 {[%emt 0:00:06]} d6 {[%emt 0:00:02]} 12. d5 {[%emt 0:02:18]} Na6 $1 {[%emt 0:00:05][%cal Bb8a6,Ba6c5,Bc5e6][%mdl 4] outshines the older 12...Nd7. E13: Queen's Indian/Nimzo-Indian hybrid: 4 Nc3 Bb7 5 Bg5 h6 6 Bh4 Bb4.} 13. Bxe4 {[%emt 0:10:25]} (13. Nd4 {with more complications.} Nac5 14. Nxe6 Nxe6 15. dxe6 O-O 16. f3) 13... fxe4 {[%emt 0:00:05]} 14. Qxe4 {[%emt 0:00:26]} Qf6 {[%emt 0:00:08] Inhibits Qg6+. Black is slightly better.} 15. Qxe6+ {[%emt 0:01:56]} Qxe6 {[%emt 0:00:05]} 16. dxe6 {[%emt 0:00:05]} Nc5 {[%emt 0:00:06]} 17. O-O {[%emt 0:03:25]} (17. h4 {looks sharper.} Ke7 18. O-O-O Nxe6 19. Rdg1) 17... Bxf3 {[%emt 0:00:05]} 18. gxf3 {[%emt 0:00:07]} Nxe6 {[%emt 0:00:03]} 19. Kg2 {[%emt 0:21:09]} O-O-O {[%emt 0:01:37]} 20. Rh1 {[%emt 0:04:03]} Rhf8 $1 {[%emt 0:00:39]} 21. h4 {[%emt 0:05:35]} Rf5 $1 {[%emt 0:00:44]} 22. hxg5 {[%emt 0:07:58]} hxg5 {[%emt 0:00:04] [#]} 23. Rh7 $146 {[%emt 0:01:22]} ({Predecessor:} 23. Rh6 Re8 24. Rah1 Rc5 25. f4 gxf4 26. exf4 Rxc4 27. f5 Nf4+ 28. Bxf4 Rxf4 29. Rh8 Kd7 30. Rxe8 Kxe8 31. Rh7 Kd8 {½-½ Bergmann,P (2044)-Lemanczyk,T (2276) CP-2011-Q-00008 2013}) 23... Rd7 {[%emt 0:02:53][%mdl 1024] Against Re7. Black has compensation.} 24. Rh8+ {[%emt 0:04:10]} Kb7 $1 {[%emt 0:00:28]} 25. Re8 {[%emt 0:01:53]} Nc5 {[%emt 0:00:09]} (25... Ng7 $15 26. Re4 Ra5) 26. Rd1 {[%emt 0:05:11]} (26. e4 $5 {[%cal Re4f5]} Rf6 27. Re1 $11) 26... Rdf7 {[%emt 0:02:03]} 27. f4 {[%emt 0:04:15]} (27. Rd5 $1 $11 {keeps the balance.}) 27... gxf4 $17 {[%emt 0:00:09]} 28. Bxf4 {[%emt 0:00:13]} Na4 {[%emt 0:00:04]} 29. Rd3 {[%emt 0:01:59]} Rc5 {[%emt 0:00:25]} 30. Re4 {[%emt 0:07:53]} Rc6 {[%emt 0:00:04]} 31. Rd2 {[%emt 0:01:41]} Nxc3 {[%emt 0:00:38]} 32. Red4 {[%emt 0:00:17]} Rf5 {[%emt 0:00:35] Black is more active.} 33. Rc2 {[%emt 0:01:34] [#]} (33. Bg3 $1 $15) 33... Nb5 $1 $36 {[%emt 0:02:13][%mdl 2560] Black is on the roll.} 34. Rd3 {[%emt 0:05:17] a4 would be deadly.} (34. cxb5 $2 Rxc2 35. a4 a6 36. bxa6+ Kxa6 $19) 34... a6 {[%emt 0:06:41]} (34... d5 $1 $17 35. a4 Rxc4 36. Rxd5 Rxc2 37. Rxf5 Nc3) 35. a4 {[%emt 0:00:56]} Na7 {[%emt 0:00:06]} 36. Bg3 {[%emt 0:02:17]} Ra5 {[%emt 0:00:21]} (36... Rfc5 $15) 37. f4 $11 {[%emt 0:00:37]} b5 {[%emt 0:02:33]} 38. axb5 {[%emt 0:00:31]} axb5 {[%emt 0:00:02]} 39. c5 {[%emt 0:00:22]} dxc5 $17 {[%emt 0:00:25]} (39... Rxc5 $6 40. Rxc5 dxc5 41. f5 $11) 40. f5 {[%emt 0:00:34]} c4 {[%emt 0:00:30]} 41. Rd7 {[%emt 0:00:11]} (41. Rd5 $17) 41... b4 $19 {[%emt 0:02:19]} 42. Rf2 {[%emt 0:01:21]} b3 {[%emt 0:02:42]} (42... c3 $19 43. f6 c2) 43. f6 $17 {[%emt 0:00:36] aiming for f7.} Ra2 {[%emt 0:00:07]} (43... Nb5 $142 $1 44. f7 Ra8) 44. Be5 {[%emt 0:01:39] [#]} (44. Rxa2 $17 {keeps fighting.} bxa2 45. Be5) 44... c3 $4 {[%emt 0:02:34][%mdl 8192] [#]} (44... Rxf2+ $1 $19 {and all is fine.} 45. Kxf2 c3) 45. Rxa2 $1 $18 {[%emt 0:00:53]} bxa2 {[%emt 0:05:54][%mdl 4096] Endgame KRB-KRN} 46. Rd1 {[%emt 0:00:04]} Rb6 {[%emt 0:02:58]} 47. Bxc3 {[%emt 0:00:54]} (47. f7 $18 Rb2+ 48. Kg3 (48. Kf3 Rb1 $11)) 47... Nb5 $11 {[%emt 0:00:35]} 48. Be5 {[%emt 0:00:44] Strongly threatening f7.} Nd6 {[%emt 0:00:10] Hoping for ...Nf7.} 49. Bxd6 {[%emt 0:00:28][%mdl 8192] KRB-KR} (49. Ra1 $11 {and White has nothing to worry.}) 49... Rb1 $19 {[%emt 0:05:45]} (49... Rxd6 50. Ra1 $11) 50. f7 {[%emt 0:00:06]} Rxd1 {[%emt 0:00:06]} (50... a1=B {gets mated.} 51. Rxb1+ (51. f8=R Rxd1 52. Bf4 c5 $11) 51... Kc8 52. f8=Q+ Kd7 53. Qe7+ Kc6 54. Qxc7+ Kd5 55. Rb5+ Ke4 56. Qc4+ Kxe3 57. Bf4#) 51. f8=Q {[%emt 0:00:18] Qf3+ would kill now.} a1=Q {[%emt 0:00:30] KQR-KQB} (51... a1=B {leads to mate.} 52. Qf3+ Kb8 53. Qxd1 cxd6 54. Qxa1 Kc7 55. Kf3 Kc6 56. Ke4 d5+ 57. Ke5) 52. Qf3+ {[%emt 0:00:55]} Ka7 {[%emt 0:00:09] ( -> ...Rd2+)} 53. Bg3 {[%emt 0:00:39]} Qa2+ {[%emt 0:01:13]} 54. Bf2 {[%emt 0:00:19] Threatens to win with e4+.} Qg8+ {[%emt 0:00:03]} 55. Kh3 {[%emt 0:00:35]} Rd7 {[%emt 0:01:23]} 56. e4+ $2 {[%emt 0:00:29]} (56. Qf5 {is a better defense.} Rh7+ 57. Bh4) 56... Kb8 {[%emt 0:00:04]} 57. Qf5 $2 {[%emt 0:00:31]} (57. Bg3 $19) 57... Rh7+ {[%emt 0:00:42] Black mates.} 58. Bh4 {[%emt 0:00:06]} Qb3+ {[%emt 0:00:23]} 59. Kg4 {[%emt 0:00:45]} Qd1+ {[%emt 0:00:04]} 60. Kg5 {[%emt 0:00:47]} Qh5+ {[%emt 0:00:06] Weighted Error Value: White=0.50/Black=0.30} 0-1

[Event "10th Cherry Blossom Classic 2023"]
[Site "Dulles"]
[Date "2023.05.25"]
[Round "1.13"]
[White "Park, Evan"]
[Black "Martin, Sam B"]
[Result "1-0"]
[ECO "C10"]
[WhiteElo "2380"]
[BlackElo "2067"]
[Annotator "TA"]
[PlyCount "71"]
[EventDate "2023.05.24"]
[EventType "swiss"]
[EventCountry "USA"]
[SourceTitle "playchess.com"]
[Source "ChessBase"]
[SourceQuality "1"]
[TimeControl "5400+30"]

{[%evp 12,70,45,27,16,7,9,12,6,0,0,0,0,0,0,0,0,0,0,-18,0,-9,0,-18,-17,-11,-12,-18,-9,-19,0,0,0,0,-2,-1,0,0,0,0,0,0,0,0,0,0,0,0,0,0,0,0,0,0,52,0,459,444,29978,29979,29999]} 1. e4 {[%emt 0:00:04]} e6 {[%emt 0:00:13]} 2. d4 {[%emt 0:00:02]} d5 {[%emt 0:00:12]} 3. Nc3 {[%emt 0:00:03]} dxe4 {[%emt 0:00:13]} 4. Nxe4 {[%emt 0:00:04]} Nd7 {[%emt 0:00:10]} 5. Nf3 {[%emt 0:01:07]} Ngf6 {[%emt 0:00:10]} 6. Nxf6+ {[%emt 0:00:03]} Nxf6 {[%emt 0:00:13]} 7. Be3 {[%emt 0:01:38]} Nd5 {[%emt 0:01:07] C10: French with 3 Nc3: Unusual Black 3rd moves and 3...dxe4.} 8. Bd3 {[%emt 0:03:23]} Nxe3 {[%emt 0:18:57]} 9. fxe3 {[%emt 0:00:03]} Bd6 {[%emt 0:00:43] The position is equal.} 10. e4 {[%emt 0:05:36] [#]} c5 $146 {[%emt 0:16:33]} ({Predecessor:} 10... e5 11. dxe5 Bc5 12. Bb5+ c6 13. Qxd8+ Kxd8 14. Bc4 Ke7 15. Ke2 Be6 16. Bxe6 Kxe6 {½-½ Lagno,K (2456)-Ovod,E (2410) EU-ch (Women) 8th 2007 (9)}) 11. e5 {[%emt 0:01:30]} Be7 {[%emt 0:00:41]} 12. Qe2 {[%emt 0:01:24]} Qa5+ {[%emt 0:06:46]} 13. c3 {[%emt 0:00:27]} Bd7 {[%emt 0:02:04] Repels Bb5} 14. O-O {[%emt 0:00:59][%cal Ob2b4]} Bc6 {[%emt 0:03:16]} 15. Be4 {[%emt 0:04:01]} (15. a3 $5 {[%cal Rb2b4]}) 15... Bxe4 {[%emt 0:02:33]} 16. Qxe4 {[%emt 0:00:01]} Qb6 {[%emt 0:00:02]} 17. dxc5 {[%emt 0:08:01]} Qxc5+ {[%emt 0:04:10]} 18. Kh1 {[%emt 0:00:01]} O-O {[%emt 0:00:53]} 19. Rad1 {[%emt 0:00:48]} (19. Qxb7 Rab8 20. Qa6 Rxb2 $17) 19... Rac8 {[%emt 0:10:14]} 20. Rd7 {[%emt 0:02:56]} Rc7 {[%emt 0:02:02]} (20... Qb5 $5 {[%cal Rb5f1]} 21. Qd3 (21. Rxe7 $2 Qxf1+ 22. Ng1 Rcd8 $19) (21. Rfd1 Rfd8 $11) 21... Qxd3 22. Rxd3 Rfd8 $11) 21. Rfd1 {[%emt 0:00:02]} Rfc8 {[%emt 0:03:41]} 22. h3 {[%emt 0:03:21]} h6 {[%emt 0:00:08]} 23. a4 {[%emt 0:05:36]} Rxd7 {[%emt 0:02:07]} 24. Rxd7 {[%emt 0:00:01] [#] Threatens to win with b4.} Rc7 {[%emt 0:00:44]} 25. Qd3 {[%emt 0:01:50]} Qc6 {[%emt 0:00:43]} 26. Rd4 {[%emt 0:00:42]} a6 {[%emt 0:04:13]} 27. Nd2 {[%emt 0:04:17]} b5 {[%emt 0:07:05]} 28. axb5 {[%emt 0:00:03]} axb5 {[%emt 0:00:02]} 29. Ne4 {[%emt 0:00:37]} Qb6 {[%emt 0:05:35]} 30. Nd6 {[%emt 0:02:35]} Qc5 {[%emt 0:04:07]} 31. Qe4 {[%emt 0:08:30]} (31. Nxb5 Rb7 32. c4 Qxe5 $15) 31... Rd7 {[%emt 0:02:15]} 32. Qf4 {[%emt 0:03:08]} f6 {[%emt 0:03:12]} (32... Bxd6 $11 33. Rxd6 (33. exd6 e5 $11) 33... g5) 33. Nf5 {[%emt 0:03:46]} (33. Ne8 $1 $14 Rxd4 34. cxd4) 33... fxe5 $2 {[%emt 0:01:23][%mdl 8192] [#]} (33... Rxd4 $1 $11 34. cxd4 Qb4 35. exf6 Bxf6 36. Nxh6+ Kh8) 34. Nxh6+ $18 {[%emt 0:00:29]} (34. Rxd7 $2 exf4 35. Nxe7+ Kh7 $19) 34... Kh8 {[%emt 0:00:28]} (34... Kh7 $18 35. Qe4+ (35. Rxd7 $2 {perishes.} exf4 36. b4 Qxc3 $19) 35... Kxh6 36. Rxd7 Bf6) 35. Qf7 {[%emt 0:00:45][%csl Gh6][%cal Rf7g8]} (35. Rxd7 exf4 36. b4 Qxc3 37. Rxe7 Qe1+ 38. Kh2 gxh6 $19) 35... exd4 {[%emt 0:00:34]} 36. Qg8# {[%emt 0:00:06] Weighted Error Value: White=0.05 (flawless) /Black=0.46} 1-0

[Event "10th Cherry Blossom Classic 2023"]
[Site "Dulles"]
[Date "2023.05.25"]
[Round "1.14"]
[White "Prem, Pranav"]
[Black "Roselli Mailhe, Bernardo"]
[Result "0-1"]
[ECO "E11"]
[WhiteElo "2061"]
[BlackElo "2380"]
[Annotator "TA"]
[PlyCount "78"]
[EventDate "2023.05.24"]
[EventType "swiss"]
[EventCountry "USA"]
[SourceTitle "playchess.com"]
[Source "ChessBase"]
[SourceQuality "1"]
[TimeControl "5400+30"]

{[%evp 17,78,6,16,0,9,0,11,0,0,0,25,8,8,3,4,-10,0,-80,20,-19,-22,-25,-26,-25,4,-33,0,0,45,-510,-474,-477,-475,-432,-402,-529,-535,-552,-530,-650,-671,-647,-659,-663,-599,-576,-550,-599,-600,-604,-602,-732,-729,-814,-814,-1050,-1037,-1018,-993,-29990,-29991,-29991,-29992]} 1. d4 {[%emt 0:00:03]} Nf6 {[%emt 0:00:10]} 2. c4 {[%emt 0:00:09]} e6 {[%emt 0:00:07]} 3. Nf3 {[%emt 0:00:14]} Bb4+ {[%emt 0:00:06]} 4. Bd2 {[%emt 0:00:13]} a5 {[%emt 0:00:05]} 5. g3 {[%emt 0:00:28]} d6 {[%emt 0:00:07]} 6. Bg2 {[%emt 0:00:46]} Nbd7 {[%emt 0:00:06]} 7. O-O {[%emt 0:02:36]} e5 {[%emt 0:00:18]} 8. Bg5 {[%emt 0:04:56]} exd4 {[%emt 0:00:09]} 9. Nxd4 {[%emt 0:00:40]} h6 {[%emt 0:01:29]} 10. Bf4 {[%emt 0:03:04] E11: Bogo-Indian.} O-O {[%emt 0:00:21]} 11. Qc2 {[%emt 0:03:48]} Re8 {[%emt 0:12:09]} (11... Bc5 $5 {[%cal Rc5d4]} 12. Rd1 a4 $11) 12. Rd1 {[%emt 0:07:58] The position is equal.} Qe7 {[%emt 0:08:02] [#]} 13. Nc3 $146 {[%emt 0:07:02]} (13. a3 $5 Bc5 $8 14. Nc3 $11) ({Predecessor:} 13. a3 Bc5 14. Nc3 Bxd4 15. Rxd4 Nc5 16. Rd2 a4 17. Re1 Nce4 18. Nxe4 Nxe4 19. Bxe4 Qxe4 20. Qxe4 Rxe4 {½-½ Bensdorp,M (2284)-Wirig,A (2456) La Fere op 7th 2008 (2)}) 13... Nb6 {[%emt 0:07:11]} 14. b3 {[%emt 0:05:44]} c6 {[%emt 0:26:47]} 15. a3 {[%emt 0:06:05]} Bc5 {[%emt 0:00:57]} 16. Qd3 {[%emt 0:08:20]} (16. e4 {simplifies} g5 17. Bc1 d5 18. cxd5 cxd5 19. Be3) 16... Ng4 {[%emt 0:05:13]} 17. a4 {[%emt 0:18:06] [#]} (17. Ne4 $11 {remains equal.}) 17... f5 $1 {[%emt 0:07:04]} 18. h3 {[%emt 0:10:01]} (18. Nxf5 $2 Bxf5 19. Qxf5 Nxf2 20. Bxd6 Bxd6 $19) (18. Bc1 Qf6) 18... Ne5 {[%emt 0:04:50]} 19. Qc2 {[%emt 0:11:09]} Qf6 $1 {[%emt 0:03:39]} 20. Be3 {[%emt 0:05:34]} g5 {[%emt 0:04:01]} 21. Qd2 {[%emt 0:01:18]} (21. Bc1 $5) 21... Bd7 {[%emt 0:00:49]} 22. Kh1 {[%emt 0:01:26]} Kh8 {[%emt 0:00:56][%cal Ob6c4]} 23. f4 $2 {[%emt 0:01:38][%mdl 8192] [#] Now White is beyond hope.} (23. Nc2 $14 {stays ahead.}) 23... Nexc4 $1 $19 {[%emt 0:00:19][%mdl 512]} 24. bxc4 {[%emt 0:00:23]} Nxc4 {[%emt 0:00:09]} 25. fxg5 {[%emt 0:00:40]} Qg6 {[%emt 0:05:35]} 26. Qd3 {[%emt 0:00:31]} Nxe3 {[%emt 0:00:08]} (26... Rxe3 $2 27. Qxc4 Qxg5 28. Qf7 Rxc3 29. Qxd7 Rxg3 30. Nxf5 (30. Qxb7 $2 Rg8 $19) 30... Rxg2 31. Nxd6 Bxd6 32. Qxd6 $17) 27. Nb3 {[%emt 0:00:34]} Nxd1 {[%emt 0:00:42]} 28. Rxd1 {[%emt 0:00:19]} Re3 {[%emt 0:00:44]} (28... Qxg5 29. Nxc5 dxc5 30. Qxd7 $15) 29. Qd2 {[%emt 0:00:37] Strongly threatening Nxc5.} Bb6 {[%emt 0:00:17]} ({Less strong is} 29... hxg5 30. Nxc5 Re7 31. Qd4+ (31. Nxb7 d5 $14) (31. Qxd6 Qxd6 32. Rxd6 Be8 $16) 31... Kg8 32. Qxd6 (32. Nxb7 d5 $16) 32... Qxd6 33. Rxd6 $16) 30. Nd4 {[%emt 0:00:35]} Rxg3 {[%emt 0:01:35]} 31. Nf3 {[%emt 0:00:09]} Bc5 {[%emt 0:00:42][%cal Rh6g5]} 32. Qf4 {[%emt 0:00:39]} Rxg5 {[%emt 0:00:15]} ({Weaker is} 32... hxg5 33. Qxg3 Rg8 34. Ne5 $16) 33. Nxg5 {[%emt 0:00:13]} Qxg5 {[%emt 0:01:12]} 34. Qf3 {[%emt 0:00:19]} Rg8 {[%emt 0:03:42]} 35. Rb1 {[%emt 0:00:50]} Be8 {[%emt 0:00:48][%cal Bd7e8,Be8h5,Bh5f3][%mdl 32]} 36. e4 {[%emt 0:00:50]} Bh5 {[%emt 0:01:03]} 37. Qf1 {[%emt 0:00:06]} Qd2 {[%emt 0:01:21] White must now prevent ...f4.} 38. Nd1 {[%emt 0:00:49] [#]} Rxg2 $1 {[%emt 0:01:52]} 39. Qxg2 {[%emt 0:00:24]} Bf3 {[%emt 0:00:04][%mdl 64] Pin, Double Attack.   Weighted Error Value: White=0.63/Black=0.16 (very precise)} 0-1

[Event "10th Cherry Blossom Classic 2023"]
[Site "Dulles"]
[Date "2023.05.25"]
[Round "1.15"]
[White "Muzychuk, Anna"]
[Black "Hu, Merric"]
[Result "1-0"]
[ECO "B77"]
[WhiteElo "2504"]
[BlackElo "2022"]
[Annotator "TA"]
[PlyCount "69"]
[EventDate "2023.05.24"]
[EventType "swiss"]
[EventCountry "USA"]
[SourceTitle "playchess.com"]
[Source "ChessBase"]
[SourceQuality "1"]
[TimeControl "5400+30"]

{[%evp 23,69,24,27,20,40,0,0,0,0,0,0,-25,-27,-158,-52,-60,0,0,0,-27,0,0,0,0,0,-10,-10,-19,717,720,863,824,819,805,773,766,1925,1531,29985,29985,29987,29988,29988,5243,29988,29989,29991,29990]} 1. e4 {[%emt 0:00:03]} c5 {[%emt 0:00:13]} 2. Nf3 {[%emt 0:00:09]} Nc6 {[%emt 0:00:18]} 3. d4 {[%emt 0:00:08]} cxd4 {[%emt 0:00:04]} 4. Nxd4 {[%emt 0:00:06]} g6 {[%emt 0:00:53]} 5. Nc3 {[%emt 0:00:12]} Bg7 {[%emt 0:00:04]} 6. Be3 {[%emt 0:00:08]} Nf6 {[%emt 0:00:16]} 7. f3 {[%emt 0:00:30]} O-O {[%emt 0:01:02]} 8. Bc4 {[%emt 0:00:05]} d6 {[%emt 0:00:13]} 9. Bb3 {[%emt 0:00:13]} Bd7 {[%emt 0:00:15]} 10. h4 {[%emt 0:00:07][%cal Bh2h4,Bh4h5][%mdl 32]} Nxd4 {[%emt 0:04:11]} 11. Bxd4 {[%emt 0:02:58]} b5 {[%emt 0:06:42]} 12. Qd2 {[%emt 0:14:36]} a5 $1 {[%emt 0:04:12][%cal Ba7a5,Ba5a4][%mdl 32] [#]} 13. h5 $1 {[%emt 0:12:48] B77: Sicilian Dragon: Yugoslav Attack, 9 Bc4 sidelines.} a4 {[%emt 0:02:11]} 14. Bxf6 {[%emt 0:00:58]} (14. Bd5 $5 b4 15. Bxf6 exf6 16. Ne2 $14) 14... exf6 {[%emt 0:00:56]} (14... Bxf6 $2 15. hxg6 Bg7 16. Bxf7+ Rxf7 17. gxf7+ $18) 15. Bd5 {[%emt 0:00:19] The position is equal.} Rc8 {[%emt 0:05:58]} 16. hxg6 {[%emt 0:00:41]} hxg6 {[%emt 0:00:19]} 17. a3 {[%emt 0:06:06]} f5 {[%emt 0:05:45]} 18. O-O-O {[%emt 0:07:42] [#]} (18. Na2 $11 {keeps the balance.}) 18... Qf6 $146 {[%emt 0:07:38]} (18... b4 $1 $17 {[%cal Rb4c3]} 19. Nb1 (19. axb4 a3 $17) 19... Qf6) ({Predecessor:} 18... b4 19. axb4 a3 20. Kb1 axb2 21. Ne2 fxe4 22. Bxe4 Ba4 23. Qd5 Bc6 24. Qd2 Bxe4 25. fxe4 {0-1 Wenger,J (1802)-Huzen,P (2334) IECC P email 1999}) 19. g4 $15 {[%emt 0:07:32]} f4 {[%emt 0:10:45]} (19... fxg4 $15 20. fxg4 (20. Qh2 Rfe8 $15) 20... Bxg4) 20. Ba2 {[%emt 0:18:41]} Rc6 {[%emt 0:10:51]} 21. g5 {[%emt 0:07:17] White wants to mate with Qh2.} (21. Nxb5 $2 Qxb2#) (21. Bd5 $5 {[%cal Rd5c6]} Rc5 22. Ba2 $11 (22. Qh2 Rb8 $11)) 21... Qxg5 {[%emt 0:08:30]} 22. Rdg1 {[%emt 0:00:47]} (22. Qh2 Rfc8 23. Rd5 (23. Rdg1 $2 Qf6 $19) 23... Qf6 $17) 22... Qf6 {[%emt 0:00:54] Black wants to play ...Rfc8.} (22... Bxc3 $2 23. bxc3 $18) 23. e5 $40 {[%emt 0:02:51][%cal Be4e5,Be5d6,Bd6e7][%mdl 160] White has some attack.} (23. Nxb5 $2 Qxb2+ 24. Kd1 Qxa2 $19) (23. Qh2 $2 Rfc8 24. e5 (24. Nxb5 Qxb2+ 25. Kd1 Qa1+ {[%mdl 64] Deflection} 26. Ke2 Rxc2+ {[%mdl 64] Discovered Attack, Double Attack} 27. Kd3 Bxb5+) 24... dxe5 $19) 23... Qf5 {[%emt 0:06:57] And now ...Rfc8 would win.} (23... Qxe5 $2 24. Rxg6 Rxc3 25. bxc3 $18) 24. Nd5 {[%emt 0:06:01][%cal Rd5e7] Some like it hot} (24. Qh2 Rfc8 25. Rg4 (25. Nxb5 $2 Rxc2+ {[%mdl 64] Discovered Attack, Double Attack} 26. Kd1 Rc1+ 27. Ke2 Qc2#) (25. Bd5 $2 Rxc3 26. bxc3 Rxc3 $19) 25... dxe5 $19) 24... Re8 {[%emt 0:06:22] Prevents Ne7+.} (24... dxe5 $2 25. Ne7#) (24... Qxe5 25. c3 Rfc8 26. Rxg6 $14 (26. Re1 Qd4 $11)) 25. exd6 {[%emt 0:04:04]} Bf6 {[%emt 0:00:32][%mdl 8192] [#] Prevents Ne7+. A mistake that costs the game.} (25... Qe5 $11 26. c3 Kf8) 26. Rh5 $3 $18 {[%emt 0:01:51][%mdl 576] Pin} Re1+ {[%emt 0:01:27]} (26... Qe6 27. Rxg6+) 27. Rxe1 {[%emt 0:00:06]} gxh5 {[%emt 0:00:05]} 28. Ne7+ {[%emt 0:01:49]} (28. Qxf4 $2 Qxc2#) ({Stronger than} 28. Nxf4 Rxc2+ 29. Qxc2 Qxf4+ 30. Qd2 (30. Kb1 $2 Bf5 $19) 30... Bxb2+ 31. Kd1 Qxf3+ 32. Qe2 Qf6 33. Bxf7+ Kxf7 $17) 28... Bxe7 {[%emt 0:00:05]} 29. dxe7 {[%emt 0:00:02] Threatens to win with Bd5.} Rc8 {[%emt 0:01:16]} 30. c3 {[%emt 0:00:14] Threatening mate with Bb1.} Kg7 {[%emt 0:01:12]} 31. Bb1 {[%emt 0:01:02][%mdl 64] Deflection} Qh3 {[%emt 0:00:07]} 32. Qxf4 {[%emt 0:01:13]} f6 {[%emt 0:00:29]} 33. Ba2 {[%emt 0:01:23]} (33. Qe4 $142 Bf5 34. e8=Q Rxe8 35. Qxe8 Qxf3 36. Qe7+ (36. Qxb5 Qf4+ 37. Kd1 Bg4+ 38. Re2 Qf1+ {[%mdl 64] Pin} 39. Kd2 Bxe2 $11) 36... Kg6 37. Rg1+ Qg4 38. Rxg4+ hxg4 39. Qe8+ Kg5 40. Qxb5) 33... Bf5 {[%emt 0:02:50]} 34. Rg1+ {[%emt 0:01:58]} Kh7 {[%emt 0:00:07]} 35. Bf7 {[%emt 0:00:32] A superb game by Muzychuk.   Weighted Error Value: White=0.17 (very precise) /Black=0.51} 1-0